[Event "*** Titled Tuesday Blitz"]
[Site "Chess.com"]
[Date "2018.07.03"]
[Round "10"]
[White "David_Paravyan"]
[Black "Paralinch"]
[Result "1-0"]
[WhiteElo "2746"]
[BlackElo "2793"]
[TimeControl "180+2"]
[EndTime "15:14:07 PDT"]
[Termination "David_Paravyan won by resignation"]

1. e4 {[%clk 0:02:58.1]} 1... c5 {[%clk 0:02:59.8]} 2. Nf3 {[%clk 0:02:59.4]}
2... e6 {[%clk 0:03:00.7]} 3. d4 {[%clk 0:03:00.3]} 3... cxd4 {[%clk 0:03:02.6]}
4. Nxd4 {[%clk 0:03:01.9]} 4... Nf6 {[%clk 0:03:04.3]} 5. Nc3 {[%clk 0:03:02.9]}
5... Nc6 {[%clk 0:03:05.9]} 6. Ndb5 {[%clk 0:03:02.5]} 6... Bb4 {[%clk
0:03:06.1]} 7. a3 {[%clk 0:03:01.9]} 7... Bxc3+ {[%clk 0:03:07.3]} 8. Nxc3
{[%clk 0:03:03.8]} 8... d5 {[%clk 0:03:09]} 9. Bd3 {[%clk 0:03:04.3]} 9... dxe4
{[%clk 0:03:07.8]} 10. Nxe4 {[%clk 0:03:06.2]} 10... Nxe4 {[%clk 0:03:09.1]} 11.
Bxe4 {[%clk 0:03:07.4]} 11... Qxd1+ {[%clk 0:03:10.1]} 12. Kxd1 {[%clk
0:03:08.7]} 12... e5 {[%clk 0:03:11.3]} 13. Be3 {[%clk 0:02:23.4]} 13... Be6
{[%clk 0:03:10.9]} 14. Kc1 {[%clk 0:02:22.2]} 14... f5 {[%clk 0:02:57]} 15.
Bxc6+ {[%clk 0:02:15.3]} 15... bxc6 {[%clk 0:02:58]} 16. b3 {[%clk 0:02:15.1]}
16... Kf7 {[%clk 0:02:46.8]} 17. Kb2 {[%clk 0:02:14.9]} 17... Rhb8 {[%clk
0:02:17.6]} 18. Rhe1 {[%clk 0:02:03.5]} 18... Bd5 {[%clk 0:02:15.9]} 19. Bc5
{[%clk 0:01:56.3]} 19... e4 {[%clk 0:01:42.5]} 20. a4 {[%clk 0:01:48.1]} 20...
Rb7 {[%clk 0:01:38.9]} 21. Rad1 {[%clk 0:01:44]} 21... Re8 {[%clk 0:01:39.5]}
22. Re3 {[%clk 0:01:31.7]} 22... f4 {[%clk 0:01:36]} 23. Rh3 {[%clk 0:01:32]}
23... h6 {[%clk 0:01:29.5]} 24. Rh4 {[%clk 0:01:30.8]} 24... f3 {[%clk
0:01:29.2]} 25. Rf4+ {[%clk 0:01:28.6]} 25... Kg8 {[%clk 0:01:21.8]} 26. g3
{[%clk 0:01:27.8]} 26... a6 {[%clk 0:01:19]} 27. Ka3 {[%clk 0:01:25.4]} 27...
Rf7 {[%clk 0:00:56.5]} 28. c4 {[%clk 0:01:17.5]} 28... Rxf4 {[%clk 0:00:55]} 29.
gxf4 {[%clk 0:01:19.4]} 29... Bf7 {[%clk 0:00:55.6]} 30. Rd6 {[%clk 0:01:13.2]}
30... Re6 {[%clk 0:00:47.1]} 31. Rxe6 {[%clk 0:01:10.6]} 31... Bxe6 {[%clk
0:00:48.2]} 32. Kb4 {[%clk 0:01:12.1]} 32... e3 {[%clk 0:00:31.3]} 33. Bxe3
{[%clk 0:01:12]} 33... Bf5 {[%clk 0:00:32.7]} 34. Ka5 {[%clk 0:00:54.3]} 34...
Bc2 {[%clk 0:00:33.1]} 35. Kxa6 {[%clk 0:00:38]} 35... Bxb3 {[%clk 0:00:33.7]}
36. a5 {[%clk 0:00:39.5]} 36... Bxc4+ {[%clk 0:00:30.7]} 37. Kb7 {[%clk
0:00:32.4]} 37... Kf7 {[%clk 0:00:29.8]} 38. a6 {[%clk 0:00:33.1]} 38... c5
{[%clk 0:00:27.7]} 39. Bxc5 {[%clk 0:00:22.8]} 39... Ke6 {[%clk 0:00:27]} 40. a7
{[%clk 0:00:22.8]} 40... Bd5+ {[%clk 0:00:28.2]} 41. Kb8 {[%clk 0:00:23.6]}
41... Kf5 {[%clk 0:00:29.4]} 42. Bf8 {[%clk 0:00:20]} 42... g6 {[%clk
0:00:14.6]} 43. Bxh6 {[%clk 0:00:19.1]} 43... Kg4 {[%clk 0:00:16]} 44. a8=Q
{[%clk 0:00:18.2]} 44... Bxa8 {[%clk 0:00:16.9]} 45. Kxa8 {[%clk 0:00:20]} 45...
Kh3 {[%clk 0:00:18.5]} 46. Bg5 {[%clk 0:00:14.4]} 46... Kxh2 {[%clk 0:00:16.4]}
47. Bh4 {[%clk 0:00:15.3]} 47... Kh3 {[%clk 0:00:17.3]} 48. Bg3 {[%clk
0:00:16.1]} 1-0

[Event "*** Titled Tuesday Blitz"]
[Site "Chess.com"]
[Date "2018.07.03"]
[Round "10"]
[White "meoluoi91"]
[Black "djamir"]
[Result "1-0"]
[WhiteElo "2524"]
[BlackElo "2583"]
[TimeControl "180+2"]
[EndTime "15:14:13 PDT"]
[Termination "meoluoi91 won by resignation"]

1. d4 {[%clk 0:03:01.9]} 1... f5 {[%clk 0:02:59.6]} 2. c4 {[%clk 0:03:00.8]}
2... Nf6 {[%clk 0:03:00.1]} 3. Nc3 {[%clk 0:03:01.9]} 3... d6 {[%clk 0:03:00.4]}
4. e3 {[%clk 0:03:00.7]} 4... g6 {[%clk 0:03:01]} 5. Bd3 {[%clk 0:03:01.1]} 5...
Bg7 {[%clk 0:03:02.2]} 6. Nge2 {[%clk 0:03:02.3]} 6... O-O {[%clk 0:03:02.6]} 7.
Qc2 {[%clk 0:03:03.6]} 7... e5 {[%clk 0:03:00.8]} 8. f3 {[%clk 0:03:03.7]} 8...
Nc6 {[%clk 0:02:49.5]} 9. a3 {[%clk 0:03:01.5]} 9... a5 {[%clk 0:02:45.8]} 10.
Bd2 {[%clk 0:02:51.7]} 10... Nd7 {[%clk 0:02:44.2]} 11. d5 {[%clk 0:02:41.7]}
11... Ne7 {[%clk 0:02:44.9]} 12. e4 {[%clk 0:02:35.6]} 12... Nc5 {[%clk
0:02:37.2]} 13. Be3 {[%clk 0:02:29.2]} 13... Nxd3+ {[%clk 0:02:16.2]} 14. Qxd3
{[%clk 0:02:29.1]} 14... f4 {[%clk 0:02:17.6]} 15. Bf2 {[%clk 0:02:28.9]} 15...
b6 {[%clk 0:02:19]} 16. Kd2 {[%clk 0:02:18.5]} 16... g5 {[%clk 0:01:36.1]} 17.
b4 {[%clk 0:02:17.3]} 17... Bd7 {[%clk 0:01:16.5]} 18. c5 {[%clk 0:02:14.8]}
18... bxc5 {[%clk 0:01:09.8]} 19. bxc5 {[%clk 0:02:15.5]} 19... Ng6 {[%clk
0:01:10.2]} 20. Rab1 {[%clk 0:02:11.5]} 20... g4 {[%clk 0:01:10.3]} 21. fxg4
{[%clk 0:01:47.8]} 21... Bxg4 {[%clk 0:01:10.7]} 22. h3 {[%clk 0:01:47.1]} 22...
f3 {[%clk 0:00:45.4]} 23. hxg4 {[%clk 0:01:40.9]} 23... fxg2 {[%clk 0:00:41.2]}
24. Rhg1 {[%clk 0:01:35.3]} 24... Rxf2 {[%clk 0:00:41.9]} 25. Qg3 {[%clk
0:01:33.1]} 25... Qg5+ {[%clk 0:00:29.5]} 26. Kc2 {[%clk 0:01:33.2]} 26... Raf8
{[%clk 0:00:10.7]} 27. Rxg2 {[%clk 0:01:33.8]} 27... Rxg2 {[%clk 0:00:12.1]} 28.
Qxg2 {[%clk 0:01:35.1]} 28... Bh6 {[%clk 0:00:14]} 29. Rd1 {[%clk 0:01:31.5]}
29... Nf4 {[%clk 0:00:13.7]} 30. Nxf4 {[%clk 0:01:07.2]} 30... exf4 {[%clk
0:00:15.1]} 31. Qf3 {[%clk 0:01:06.9]} 31... Bg7 {[%clk 0:00:16.2]} 32. c6
{[%clk 0:01:05.9]} 32... Rb8 {[%clk 0:00:16.9]} 33. Rb1 {[%clk 0:00:55.7]} 33...
Rxb1 {[%clk 0:00:17.6]} 34. Nxb1 {[%clk 0:00:56.8]} 34... Qe5 {[%clk 0:00:18.9]}
35. Nc3 {[%clk 0:00:55.2]} 35... Qd4 {[%clk 0:00:20.3]} 36. Nd1 {[%clk
0:00:54.2]} 36... Qc4+ {[%clk 0:00:19.3]} 37. Kd2 {[%clk 0:00:54.1]} 37... Qa2+
{[%clk 0:00:19.7]} 38. Ke1 {[%clk 0:00:53.8]} 38... Be5 {[%clk 0:00:18.8]} 39.
g5 {[%clk 0:00:48.9]} 39... Qb1 {[%clk 0:00:17]} 40. Kf1 {[%clk 0:00:44.8]}
40... a4 {[%clk 0:00:16.5]} 41. Kg2 {[%clk 0:00:44.3]} 41... Qc2+ {[%clk
0:00:17.1]} 42. Kh3 {[%clk 0:00:45]} 42... Kg7 {[%clk 0:00:18.1]} 43. Nf2 {[%clk
0:00:42.3]} 43... Qb3 {[%clk 0:00:19.4]} 44. Nd3 {[%clk 0:00:42.2]} 44... Bb2
{[%clk 0:00:19]} 45. Kg4 {[%clk 0:00:35.9]} 45... Bxa3 {[%clk 0:00:20.4]} 46.
Qh3 {[%clk 0:00:36.9]} 46... Kg8 {[%clk 0:00:18.3]} 47. Kf5 {[%clk 0:00:32.7]}
47... Bb2 {[%clk 0:00:18]} 48. g6 {[%clk 0:00:33.1]} 48... hxg6+ {[%clk
0:00:18.6]} 49. Kxg6 {[%clk 0:00:34.5]} 49... Kf8 {[%clk 0:00:12.5]} 50. Qc8+
{[%clk 0:00:33.2]} 50... Ke7 {[%clk 0:00:13.1]} 51. Qd7+ {[%clk 0:00:34.3]} 1-0

[Event "*** Titled Tuesday Blitz"]
[Site "Chess.com"]
[Date "2018.07.03"]
[Round "10"]
[White "eljanov"]
[Black "Dr_Mortimer"]
[Result "0-1"]
[WhiteElo "2657"]
[BlackElo "2818"]
[TimeControl "180+2"]
[EndTime "15:14:48 PDT"]
[Termination "Dr_Mortimer won by resignation"]

1. c4 {[%clk 0:03:01.9]} 1... Nf6 {[%clk 0:03:00.4]} 2. Nc3 {[%clk 0:03:02.3]}
2... g6 {[%clk 0:03:01.9]} 3. g3 {[%clk 0:03:02.6]} 3... Bg7 {[%clk 0:03:02.9]}
4. Bg2 {[%clk 0:03:04]} 4... O-O {[%clk 0:03:04.8]} 5. e4 {[%clk 0:03:03.8]}
5... d6 {[%clk 0:03:06.7]} 6. Nge2 {[%clk 0:03:04.9]} 6... e5 {[%clk 0:03:03.8]}
7. O-O {[%clk 0:03:05.5]} 7... c6 {[%clk 0:03:04.7]} 8. d3 {[%clk 0:03:04.7]}
8... a6 {[%clk 0:03:05.9]} 9. h3 {[%clk 0:03:00.6]} 9... b5 {[%clk 0:03:06.9]}
10. Be3 {[%clk 0:02:52.5]} 10... b4 {[%clk 0:02:59.4]} 11. Nb1 {[%clk
0:02:39.6]} 11... a5 {[%clk 0:02:57]} 12. Nd2 {[%clk 0:02:22.8]} 12... c5 {[%clk
0:02:51.8]} 13. f4 {[%clk 0:02:01.7]} 13... exf4 {[%clk 0:02:22]} 14. gxf4
{[%clk 0:02:02.6]} 14... Ra6 {[%clk 0:02:21.1]} 15. Ng3 {[%clk 0:01:55.8]} 15...
Ne8 {[%clk 0:02:12.7]} 16. Rb1 {[%clk 0:01:54]} 16... Nc6 {[%clk 0:02:09.3]} 17.
Nf3 {[%clk 0:01:54.2]} 17... Qe7 {[%clk 0:01:20.9]} 18. Qd2 {[%clk 0:01:53.3]}
18... a4 {[%clk 0:01:20.6]} 19. Kh2 {[%clk 0:01:50.2]} 19... a3 {[%clk
0:01:21.6]} 20. b3 {[%clk 0:01:51.3]} 20... Bc3 {[%clk 0:01:18.3]} 21. Qf2
{[%clk 0:01:51.6]} 21... f5 {[%clk 0:01:11.3]} 22. exf5 {[%clk 0:01:47]} 22...
Bxf5 {[%clk 0:01:13.2]} 23. Nxf5 {[%clk 0:01:44]} 23... Rxf5 {[%clk 0:01:15.1]}
24. Ng5 {[%clk 0:01:23.9]} 24... Nf6 {[%clk 0:01:02]} 25. Ne4 {[%clk 0:01:14]}
25... Nxe4 {[%clk 0:00:47.6]} 26. dxe4 {[%clk 0:01:12.1]} 26... Rf8 {[%clk
0:00:46.7]} 27. Qg3 {[%clk 0:00:57.5]} 27... Kh8 {[%clk 0:00:39.8]} 28. Rbd1
{[%clk 0:00:46.3]} 28... Bd4 {[%clk 0:00:38.6]} 29. e5 {[%clk 0:00:39.5]} 29...
dxe5 {[%clk 0:00:29.8]} 30. Rde1 {[%clk 0:00:15.7]} 30... e4 {[%clk 0:00:10]}
31. Bxd4+ {[%clk 0:00:14.9]} 31... Nxd4 {[%clk 0:00:11.9]} 32. Rxe4 {[%clk
0:00:16.3]} 32... Re6 {[%clk 0:00:12.2]} 33. Rfe1 {[%clk 0:00:16.8]} 33... Rxe4
{[%clk 0:00:12.7]} 34. Rxe4 {[%clk 0:00:17.6]} 34... Qf6 {[%clk 0:00:14.6]} 35.
Qe3 {[%clk 0:00:16.8]} 35... Rf7 {[%clk 0:00:12.1]} 36. Qg3 {[%clk 0:00:12.5]}
36... Kg7 {[%clk 0:00:13.1]} 37. Qe3 {[%clk 0:00:12.8]} 37... h5 {[%clk
0:00:12.9]} 38. Kh1 {[%clk 0:00:11.8]} 38... h4 {[%clk 0:00:14]} 39. Kh2 {[%clk
0:00:12.7]} 39... Qd6 {[%clk 0:00:09.8]} 40. Re5 {[%clk 0:00:11.4]} 40... Rf5
{[%clk 0:00:06.4]} 41. Bd5 {[%clk 0:00:10.3]} 41... Qf6 {[%clk 0:00:05.5]} 42.
Re7+ {[%clk 0:00:10.8]} 42... Kh6 {[%clk 0:00:06.8]} 43. Rf7 {[%clk 0:00:10.1]}
43... Qd6 {[%clk 0:00:05]} 44. Rxf5 {[%clk 0:00:09.4]} 44... Nxf5 {[%clk
0:00:05.5]} 45. Qe5 {[%clk 0:00:04.9]} 45... Qxe5 {[%clk 0:00:06.7]} 46. fxe5
{[%clk 0:00:05.5]} 46... Kg7 {[%clk 0:00:08.6]} 47. Kg2 {[%clk 0:00:05.9]} 47...
Nd4 {[%clk 0:00:04]} 48. Kf2 {[%clk 0:00:02.9]} 48... Kf8 {[%clk 0:00:02.3]} 49.
Ke3 {[%clk 0:00:02.8]} 49... Ke7 {[%clk 0:00:03.5]} 50. Be4 {[%clk 0:00:03.4]}
50... g5 {[%clk 0:00:04.2]} 51. Bd5 {[%clk 0:00:02.7]} 51... Nxb3 {[%clk
0:00:04]} 52. Kd3 {[%clk 0:00:02.6]} 52... Nd4 {[%clk 0:00:04.9]} 0-1

[Event "*** Titled Tuesday Blitz"]
[Site "Chess.com"]
[Date "2018.07.03"]
[Round "10"]
[White "Saitama_Hero"]
[Black "26andrej26"]
[Result "0-1"]
[WhiteElo "2336"]
[BlackElo "2411"]
[TimeControl "180+2"]
[EndTime "15:15:00 PDT"]
[Termination "26andrej26 won on time"]

1. d4 {[%clk 0:03:01.9]} 1... Nf6 {[%clk 0:02:59.9]} 2. c4 {[%clk 0:03:03.1]}
2... g6 {[%clk 0:03:01]} 3. Nc3 {[%clk 0:03:03.2]} 3... Bg7 {[%clk 0:03:01.7]}
4. e4 {[%clk 0:03:02.8]} 4... d6 {[%clk 0:03:03.1]} 5. f4 {[%clk 0:03:04.2]}
5... O-O {[%clk 0:03:03.9]} 6. Nf3 {[%clk 0:03:05.6]} 6... c5 {[%clk 0:03:05.5]}
7. d5 {[%clk 0:03:06.2]} 7... e6 {[%clk 0:03:06.1]} 8. dxe6 {[%clk 0:03:08.1]}
8... Bxe6 {[%clk 0:03:01.8]} 9. Bd3 {[%clk 0:03:08.3]} 9... Bg4 {[%clk
0:02:56.6]} 10. h3 {[%clk 0:03:02.1]} 10... Bxf3 {[%clk 0:02:56.6]} 11. Qxf3
{[%clk 0:03:04]} 11... Nc6 {[%clk 0:02:58.2]} 12. O-O {[%clk 0:03:03.7]} 12...
Re8 {[%clk 0:02:55.2]} 13. Be3 {[%clk 0:03:02.3]} 13... Nh5 {[%clk 0:02:52.2]}
14. g4 {[%clk 0:02:48.3]} 14... Nd4 {[%clk 0:02:51.4]} 15. Qf2 {[%clk
0:02:41.1]} 15... Nf6 {[%clk 0:02:52.5]} 16. Rad1 {[%clk 0:02:34.8]} 16... a6
{[%clk 0:02:42.5]} 17. f5 {[%clk 0:02:32.9]} 17... gxf5 {[%clk 0:02:36.2]} 18.
g5 {[%clk 0:02:17.3]} 18... Nxe4 {[%clk 0:02:36.2]} 19. Bxe4 {[%clk 0:02:05.7]}
19... fxe4 {[%clk 0:02:33.1]} 20. Qxf7+ {[%clk 0:02:07]} 20... Kh8 {[%clk
0:02:34]} 21. Qh5 {[%clk 0:02:00.4]} 21... Re5 {[%clk 0:02:30]} 22. Bf4 {[%clk
0:01:53.1]} 22... Qe8 {[%clk 0:02:26.6]} 23. Qxe8+ {[%clk 0:01:46.6]} 23...
Rexe8 {[%clk 0:02:25.3]} 24. Bxd6 {[%clk 0:01:47.9]} 24... b6 {[%clk 0:02:13.6]}
25. Rde1 {[%clk 0:01:43.3]} 25... Nf3+ {[%clk 0:02:13.9]} 26. Kg2 {[%clk
0:01:42.3]} 26... Nxe1+ {[%clk 0:02:14]} 27. Rxe1 {[%clk 0:01:44.2]} 27... Be5
{[%clk 0:02:10]} 28. Bxe5+ {[%clk 0:01:40.9]} 28... Rxe5 {[%clk 0:02:11.9]} 29.
h4 {[%clk 0:01:42.1]} 29... e3 {[%clk 0:02:01.3]} 30. Re2 {[%clk 0:01:35.2]}
30... Rd8 {[%clk 0:01:59.7]} 31. Nd5 {[%clk 0:01:35]} 31... b5 {[%clk
0:01:58.5]} 32. b3 {[%clk 0:01:30.8]} 32... Kg7 {[%clk 0:01:52.2]} 33. Kg3
{[%clk 0:01:13]} 33... Rf8 {[%clk 0:01:47.5]} 34. Nf4 {[%clk 0:00:48.7]} 34...
bxc4 {[%clk 0:01:36.8]} 35. bxc4 {[%clk 0:00:48.2]} 35... Re4 {[%clk 0:01:38.1]}
36. Nh5+ {[%clk 0:00:44.8]} 36... Kg6 {[%clk 0:01:33.1]} 37. Nf6 {[%clk
0:00:46.7]} 37... Re6 {[%clk 0:01:24.2]} 38. Kg4 {[%clk 0:00:44.8]} 38... Rd8
{[%clk 0:01:23.4]} 39. h5+ {[%clk 0:00:45.1]} 39... Kg7 {[%clk 0:01:22.6]} 40.
Nd5 {[%clk 0:00:36.6]} 40... Rde8 {[%clk 0:01:12.3]} 41. Nf6 {[%clk 0:00:19.2]}
41... Rb8 {[%clk 0:01:06.6]} 42. Nd5 {[%clk 0:00:16.8]} 42... Rbe8 {[%clk
0:00:48.7]} 43. Nf6 {[%clk 0:00:16.7]} 43... R8e7 {[%clk 0:00:45]} 44. Nd5
{[%clk 0:00:13.1]} 44... Rf7 {[%clk 0:00:45.2]} 45. h6+ {[%clk 0:00:03.9]} 45...
Kf8 {[%clk 0:00:41.7]} 46. Nf6 {[%clk 0:00:05.3]} 46... Rb7 {[%clk 0:00:36.2]}
47. Kf5 {[%clk 0:00:06.1]} 47... Ree7 {[%clk 0:00:34.8]} 48. g6 {[%clk
0:00:03.9]} 48... hxg6+ {[%clk 0:00:34.4]} 49. Kxg6 {[%clk 0:00:05.7]} 49... Rb6
{[%clk 0:00:20]} 50. h7 {[%clk 0:00:04.5]} 50... Rg7+ {[%clk 0:00:09.3]} 51. Kf5
{[%clk 0:00:04.9]} 51... Rxf6+ {[%clk 0:00:10.4]} 52. Kxf6 {[%clk 0:00:06.8]}
52... Rxh7 {[%clk 0:00:12.1]} 53. Rxe3 {[%clk 0:00:07]} 53... Rh4 {[%clk
0:00:13.5]} 54. Rb3 {[%clk 0:00:04.5]} 54... Rf4+ {[%clk 0:00:12.3]} 55. Ke6
{[%clk 0:00:04.9]} 55... Rxc4 {[%clk 0:00:14.2]} 56. Rb7 {[%clk 0:00:02.9]}
56... Rb4 {[%clk 0:00:13.8]} 57. Kf6 {[%clk 0:00:04.3]} 57... Rxb7 {[%clk
0:00:14.3]} 0-1

[Event "*** Titled Tuesday Blitz"]
[Site "Chess.com"]
[Date "2018.07.03"]
[Round "10"]
[White "rasmussvane"]
[Black "ChainsOfFantasia"]
[Result "1/2-1/2"]
[WhiteElo "2597"]
[BlackElo "2428"]
[TimeControl "180+2"]
[EndTime "15:15:07 PDT"]
[Termination "Game drawn - insufficient material"]

1. Nf3 {[%clk 0:03:01.9]} 1... Nf6 {[%clk 0:02:41.5]} 2. c4 {[%clk 0:03:00]}
2... e6 {[%clk 0:02:39.5]} 3. g3 {[%clk 0:03:01.2]} 3... d5 {[%clk 0:02:38.6]}
4. Bg2 {[%clk 0:03:02.8]} 4... Be7 {[%clk 0:02:40]} 5. O-O {[%clk 0:03:04.3]}
5... O-O {[%clk 0:02:41.6]} 6. b3 {[%clk 0:03:05.9]} 6... c5 {[%clk 0:02:41.4]}
7. Bb2 {[%clk 0:03:06]} 7... d4 {[%clk 0:02:42.4]} 8. e3 {[%clk 0:03:06.9]} 8...
Nc6 {[%clk 0:02:37.3]} 9. exd4 {[%clk 0:03:08.2]} 9... cxd4 {[%clk 0:02:39.2]}
10. Re1 {[%clk 0:03:09.7]} 10... Re8 {[%clk 0:02:40.5]} 11. d3 {[%clk
0:03:00.8]} 11... Bc5 {[%clk 0:02:36.3]} 12. Ne5 {[%clk 0:03:01.2]} 12... Nxe5
{[%clk 0:02:37.1]} 13. Rxe5 {[%clk 0:03:03.1]} 13... Bd6 {[%clk 0:02:38.5]} 14.
Re1 {[%clk 0:03:00.8]} 14... e5 {[%clk 0:02:39.6]} 15. Ba3 {[%clk 0:03:01.7]}
15... a5 {[%clk 0:02:38.2]} 16. Bxd6 {[%clk 0:02:58.2]} 16... Qxd6 {[%clk
0:02:40.1]} 17. Nd2 {[%clk 0:02:59.6]} 17... Ra7 {[%clk 0:02:34.6]} 18. Ne4
{[%clk 0:02:37.4]} 18... Nxe4 {[%clk 0:02:33.2]} 19. Bxe4 {[%clk 0:02:39.3]}
19... b6 {[%clk 0:02:29.2]} 20. Bd5 {[%clk 0:02:33.7]} 20... Be6 {[%clk
0:02:29.1]} 21. Bxe6 {[%clk 0:02:34.3]} 21... Rxe6 {[%clk 0:02:30.2]} 22. Qf3
{[%clk 0:02:33.8]} 22... g6 {[%clk 0:02:25.4]} 23. Qd5 {[%clk 0:02:21.8]} 23...
Qxd5 {[%clk 0:02:00.1]} 24. cxd5 {[%clk 0:02:21.6]} 24... Ree7 {[%clk
0:01:41.1]} 25. d6 {[%clk 0:02:16.1]} 25... Re6 {[%clk 0:01:40.5]} 26. Rac1
{[%clk 0:02:17.6]} 26... Rd7 {[%clk 0:01:31.5]} 27. Rc6 {[%clk 0:02:18.3]} 27...
Rdxd6 {[%clk 0:01:30.1]} 28. Rxd6 {[%clk 0:02:19.4]} 28... Rxd6 {[%clk
0:01:31.8]} 29. Rxe5 {[%clk 0:02:20.9]} 29... Rc6 {[%clk 0:01:31.4]} 30. Rb5
{[%clk 0:01:54.7]} 30... a4 {[%clk 0:01:16.3]} 31. bxa4 {[%clk 0:01:49.7]} 31...
Rc3 {[%clk 0:01:14.9]} 32. Rxb6 {[%clk 0:01:50.7]} 32... Rxd3 {[%clk 0:01:15.1]}
33. Rd6 {[%clk 0:01:49.9]} 33... Kf8 {[%clk 0:01:09]} 34. Kf1 {[%clk 0:01:44.7]}
34... Ke7 {[%clk 0:01:04]} 35. Ke2 {[%clk 0:01:41.9]} 35... Ra3 {[%clk
0:01:04.1]} 36. Rxd4 {[%clk 0:01:42.4]} 36... Rxa2+ {[%clk 0:01:06]} 37. Ke3
{[%clk 0:01:43.9]} 37... Ke6 {[%clk 0:01:04.5]} 38. Re4+ {[%clk 0:01:42.7]}
38... Kf5 {[%clk 0:01:04.3]} 39. Rf4+ {[%clk 0:01:43.9]} 39... Ke6 {[%clk
0:01:05]} 40. Rb4 {[%clk 0:01:44.8]} 40... h5 {[%clk 0:01:00.5]} 41. h4 {[%clk
0:01:43.9]} 41... Ke5 {[%clk 0:00:59.2]} 42. Kf3 {[%clk 0:01:43]} 42... Ra3+
{[%clk 0:00:59.2]} 43. Kg2 {[%clk 0:01:43.8]} 43... Kf5 {[%clk 0:00:56.8]} 44.
Rb5+ {[%clk 0:01:44.2]} 44... Kf6 {[%clk 0:00:57.1]} 45. Ra5 {[%clk 0:01:43.9]}
45... Kg7 {[%clk 0:00:55.2]} 46. Ra6 {[%clk 0:01:42.4]} 46... Kh6 {[%clk
0:00:52.5]} 47. Ra8 {[%clk 0:01:35.9]} 47... f6 {[%clk 0:00:52.7]} 48. a5 {[%clk
0:01:37.4]} 48... g5 {[%clk 0:00:53.7]} 49. hxg5+ {[%clk 0:01:34.4]} 49... fxg5
{[%clk 0:00:55.4]} 50. f4 {[%clk 0:01:26.1]} 50... h4 {[%clk 0:00:45.9]} 51. a6
{[%clk 0:01:05.8]} 51... Rxg3+ {[%clk 0:00:25]} 52. Kf2 {[%clk 0:00:58.1]} 52...
Ra3 {[%clk 0:00:25.9]} 53. a7 {[%clk 0:00:56.2]} 53... Kh7 {[%clk 0:00:24.9]}
54. f5 {[%clk 0:00:57.3]} 54... g4 {[%clk 0:00:18.9]} 55. f6 {[%clk 0:00:58.1]}
55... Ra2+ {[%clk 0:00:19.5]} 56. Ke3 {[%clk 0:00:58.7]} 56... g3 {[%clk
0:00:18]} 57. f7 {[%clk 0:00:57.8]} 57... g2 {[%clk 0:00:18.7]} 58. Rh8+ {[%clk
0:00:52.3]} 58... Kg6 {[%clk 0:00:19.7]} 59. Rg8+ {[%clk 0:00:14.1]} 59... Kxf7
{[%clk 0:00:20.5]} 60. Rxg2 {[%clk 0:00:14.7]} 60... Rxa7 {[%clk 0:00:21.2]} 61.
Kf4 {[%clk 0:00:14.5]} 61... Ra4+ {[%clk 0:00:21.3]} 62. Kg5 {[%clk 0:00:13.7]}
62... Ke6 {[%clk 0:00:20.9]} 63. Rg4 {[%clk 0:00:12.9]} 63... Rxg4+ {[%clk
0:00:20.5]} 64. Kxg4 {[%clk 0:00:13.9]} 64... Ke5 {[%clk 0:00:22.1]} 65. Kxh4
{[%clk 0:00:14.5]} 1/2-1/2

[Event "*** Titled Tuesday Blitz"]
[Site "Chess.com"]
[Date "2018.07.03"]
[Round "10"]
[White "Korchmar_Vasiliy"]
[Black "joppie2"]
[Result "1-0"]
[WhiteElo "2740"]
[BlackElo "2737"]
[TimeControl "180+2"]
[EndTime "15:15:13 PDT"]
[Termination "Korchmar_Vasiliy won by resignation"]

1. d4 {[%clk 0:02:57.8]} 1... d5 {[%clk 0:03:00.5]} 2. Nf3 {[%clk 0:02:58.2]}
2... Nf6 {[%clk 0:03:01]} 3. Bf4 {[%clk 0:02:59.1]} 3... c5 {[%clk 0:03:02.3]}
4. e3 {[%clk 0:03:00.1]} 4... Nc6 {[%clk 0:03:03.8]} 5. Nbd2 {[%clk 0:03:00.6]}
5... cxd4 {[%clk 0:03:03.5]} 6. exd4 {[%clk 0:03:01.2]} 6... Qb6 {[%clk
0:03:04.8]} 7. Nb3 {[%clk 0:03:01.8]} 7... Bf5 {[%clk 0:03:05.3]} 8. c3 {[%clk
0:03:02.2]} 8... e6 {[%clk 0:03:04.5]} 9. a4 {[%clk 0:02:59.9]} 9... a6 {[%clk
0:03:04.9]} 10. a5 {[%clk 0:03:00.4]} 10... Qd8 {[%clk 0:03:06]} 11. Bd3 {[%clk
0:03:01.3]} 11... Bxd3 {[%clk 0:03:05.5]} 12. Qxd3 {[%clk 0:03:03.2]} 12... Bd6
{[%clk 0:03:06.9]} 13. Bxd6 {[%clk 0:02:59.7]} 13... Qxd6 {[%clk 0:03:08.8]} 14.
O-O {[%clk 0:02:48.9]} 14... O-O {[%clk 0:03:08.5]} 15. Nc5 {[%clk 0:02:35.3]}
15... Qc7 {[%clk 0:02:59.2]} 16. b4 {[%clk 0:02:30.3]} 16... Na7 {[%clk
0:02:59.6]} 17. Rfe1 {[%clk 0:02:21.5]} 17... Nb5 {[%clk 0:02:59.6]} 18. Ne5
{[%clk 0:02:17.3]} 18... Nd6 {[%clk 0:02:58.6]} 19. Re3 {[%clk 0:02:15.4]} 19...
Nfe4 {[%clk 0:02:56.5]} 20. Rh3 {[%clk 0:02:10.1]} 20... h6 {[%clk 0:02:54.2]}
21. f3 {[%clk 0:01:56.8]} 21... Nxc5 {[%clk 0:02:54.5]} 22. bxc5 {[%clk
0:01:58.7]} 22... Nb5 {[%clk 0:02:38.5]} 23. Qe3 {[%clk 0:01:52]} 23... f6
{[%clk 0:02:25.6]} 24. Ng4 {[%clk 0:01:34.2]} 24... Kf7 {[%clk 0:02:00.9]} 25.
Re1 {[%clk 0:01:22.2]} 25... Rae8 {[%clk 0:01:55.9]} 26. Qd3 {[%clk 0:00:57.4]}
26... Rh8 {[%clk 0:01:53.1]} 27. Rg3 {[%clk 0:00:54.5]} 27... Kf8 {[%clk
0:01:49.2]} 28. Ne3 {[%clk 0:00:36.1]} 28... Re7 {[%clk 0:01:49.9]} 29. Qg6
{[%clk 0:00:35.1]} 29... Nxc3 {[%clk 0:01:43.3]} 30. Ng4 {[%clk 0:00:30.6]}
30... Qf4 {[%clk 0:01:38.9]} 31. Qd3 {[%clk 0:00:14.7]} 31... Nb5 {[%clk
0:01:39.4]} 32. Rd1 {[%clk 0:00:12.5]} 32... Qc7 {[%clk 0:01:23.4]} 33. Qg6
{[%clk 0:00:10]} 33... Nc3 {[%clk 0:01:14.4]} 34. Re1 {[%clk 0:00:04]} 34... Qf4
{[%clk 0:01:11.4]} 35. Qd3 {[%clk 0:00:05.1]} 35... Nb5 {[%clk 0:01:12.6]} 36.
Rd1 {[%clk 0:00:06.3]} 36... h5 {[%clk 0:01:14]} 37. Ne3 {[%clk 0:00:04.5]}
37... g5 {[%clk 0:01:15.5]} 38. Kh1 {[%clk 0:00:03.6]} 38... f5 {[%clk
0:01:09.7]} 39. Nc2 {[%clk 0:00:04.6]} 39... g4 {[%clk 0:01:09.7]} 40. fxg4
{[%clk 0:00:04.5]} 40... hxg4 {[%clk 0:01:08.7]} 41. Rf1 {[%clk 0:00:04.9]}
41... Qg5 {[%clk 0:01:03.7]} 42. Kg1 {[%clk 0:00:05]} 42... Reh7 {[%clk
0:00:52.8]} 43. h3 {[%clk 0:00:05.8]} 43... Qf6 {[%clk 0:00:54.3]} 44. Rxg4
{[%clk 0:00:06.4]} 44... Rh4 {[%clk 0:00:54.6]} 45. Rxh4 {[%clk 0:00:07.3]}
45... Rxh4 {[%clk 0:00:56.5]} 46. Qg3 {[%clk 0:00:07.5]} 46... Nxd4 {[%clk
0:00:51.9]} 47. Qb8+ {[%clk 0:00:08.6]} 47... Kg7 {[%clk 0:00:51.3]} 48. Qxb7+
{[%clk 0:00:09.8]} 48... Kh6 {[%clk 0:00:52.5]} 49. Nxd4 {[%clk 0:00:09.9]}
49... Qxd4+ {[%clk 0:00:53.9]} 50. Kh1 {[%clk 0:00:11.4]} 50... Qd3 {[%clk
0:00:48.7]} 51. Rf3 {[%clk 0:00:08.8]} 51... Qe4 {[%clk 0:00:19.4]} 52. Qe7
{[%clk 0:00:08.5]} 52... Qe1+ {[%clk 0:00:20.6]} 53. Kh2 {[%clk 0:00:09.4]}
53... Qe5+ {[%clk 0:00:21.4]} 54. Rg3 {[%clk 0:00:07.4]} 54... Qf4 {[%clk
0:00:04.6]} 55. Qf8+ {[%clk 0:00:07.6]} 55... Kh5 {[%clk 0:00:04.5]} 56. Qf7+
{[%clk 0:00:08.6]} 1-0